bitfinex-derivatives/quotes_BTCF0:USTF0_20251219
["timestamp","ask_amount","ask_price","bid_price","bid_amount"]
[1766170775405,0.0114746,87197.0,87181.0,0.00017208]
[1766170775892,0.0114746,87197.0,87182.0,0.0114765]
[1766170776902,0.00017208,87198.0,87182.0,0.0114765]
[1766170777099,0.00017208,87198.0,87184.0,0.0114762]
[1766170778298,0.00017208,87198.0,87181.0,0.00017208]
[1766170778813,0.00017208,87198.0,87181.0,8e-08]
[1766170779104,0.0114763,87184.0,87181.0,8e-08]
[1766170779704,0.0114767,87181.0,87168.0,0.00156]
[1766170780419,0.00576,87188.0,87162.0,0.0114791]
[1766170780601,0.0114775,87175.0,87159.0,0.0172394]
[1766170780801,0.0114778,87173.0,87159.0,0.0172394]
[1766170781002,0.00011266,87174.0,87161.0,0.0114792]
[1766170781198,0.00011266,87174.0,87163.0,0.011479]
[1766170781513,0.00011266,87174.0,87160.0,0.0114793]
[1766170783202,0.0114777,87173.0,87159.0,0.00576]
[1766170783605,0.011478,87171.0,87157.0,8.805e-05]
[1766170783806,0.00011266,87174.0,87157.0,8.805e-05]
[1766170783807,0.0114778,87173.0,87157.0,8.805e-05]
[1766170784008,0.011478,87171.0,87157.0,8.805e-05]
[1766170785810,0.0114783,87169.0,87157.0,8.805e-05]
[1766170786607,0.0114779,87172.0,87157.0,8.805e-05]
[1766170787818,0.0114782,87170.0,87157.0,8.805e-05]
[1766170788218,0.01159036,87174.0,87157.0,0.01156775]
[1766170788803,0.00011266,87174.0,87159.0,0.0114794]
[1766170789817,0.00017208,87184.0,87171.0,0.0114779]
[1766170790016,0.00269208,87184.0,87170.0,0.23038335]
[1766170790427,0.00269208,87184.0,87164.0,0.00576]
[1766170791715,0.00269208,87184.0,87171.0,0.0114779]
[1766170793016,0.00269208,87184.0,87173.0,0.0114776]
[1766170795022,0.0114728,87211.0,87157.0,8.805e-05]
[1766170795023,1.46356,87209.0,87170.0,0.23038335]
[1766170795230,0.0114737,87204.0,87180.0,0.23038335]
[1766170795420,0.011474,87201.0,87184.0,0.0114762]
[1766170796022,0.01164608,87201.0,87184.0,0.01164828]
[1766170796221,0.0114744,87199.0,87184.0,0.00017208]
[1766170797318,0.0114748,87196.0,87184.0,0.00017208]
[1766170799624,0.0114744,87199.0,87184.0,0.00017208]
[1766170800319,0.00576,87199.0,87184.0,0.00017208]
[1766170800621,0.0114745,87198.0,87184.0,0.00017208]
[1766170800927,0.00576,87199.0,87186.0,0.0114759]
[1766170801128,0.01740618,87201.0,87185.0,0.0114761]
[1766170801326,0.00593208,87201.0,87192.0,0.0114751]
[1766170801528,0.0114714,87222.0,87192.0,0.0114751]
[1766170801529,0.0114715,87221.0,87203.0,0.0114736]
[1766170801823,0.00456,87220.0,87211.0,0.0114726]
[1766170802628,0.00456,87220.0,87208.0,0.0114731]
[1766170802830,0.00456,87220.0,87207.0,0.00017197]
[1766170803914,0.0114722,87215.0,87207.0,0.00017197]
[1766170804117,0.0114718,87218.0,87207.0,0.00017197]
[1766170804626,0.00576,87219.0,87207.0,0.00017197]
[1766170806232,0.0114718,87218.0,87207.0,0.00017197]
[1766170806621,0.00576,87219.0,87195.0,0.00576]
[1766170806926,0.0114741,87201.0,87185.0,0.0133161]
[1766170807131,0.0114751,87193.0,87177.0,0.00576]
[1766170807429,0.011473,87209.0,87175.0,0.0114774]
[1766170807430,0.0114753,87191.0,87175.0,0.0114774]
[1766170807629,0.01164727,87192.0,87174.0,0.00017197]
[1766170808023,0.00017197,87192.0,87174.0,0.00017197]
[1766170808419,0.00017197,87192.0,87184.0,0.0114762]
[1766170808624,0.00017197,87192.0,87179.0,0.0114768]
[1766170808825,0.00017197,87192.0,87181.0,0.0114766]
[1766170809525,0.00017197,87192.0,87183.0,0.0114763]
[1766170809720,0.00017197,87192.0,87185.0,0.0114761]
[1766170809927,0.0114722,87216.0,87197.0,0.0114744]
[1766170810221,0.0114725,87213.0,87197.0,0.0114744]
[1766170810624,0.0114728,87211.0,87194.0,0.0114749]
[1766170811026,0.01164477,87211.0,87194.0,0.01164687]
[1766170811939,0.011473,87209.0,87194.0,0.01164687]
[1766170813450,0.00017197,87211.0,87194.0,0.01164687]
[1766170813841,0.00324,87210.0,87194.0,0.01164687]
[1766170814346,0.011473,87209.0,87194.0,0.01164687]
[1766170814536,0.00324,87210.0,87183.0,0.0114763]
[1766170814736,0.00324,87210.0,87177.0,0.0114771]
[1766170814737,0.0114747,87196.0,87177.0,0.0114771]
[1766170814946,0.00108,87195.0,87167.0,0.00364]
[1766170815153,0.0114752,87193.0,87166.0,0.00252]
[1766170815342,0.0114751,87193.0,87176.0,0.0114772]
[1766170815538,0.0114751,87193.0,87178.0,0.011477]
[1766170815737,0.00017197,87193.0,87176.0,0.00017197]
[1766170817345,0.0114755,87191.0,87176.0,0.00017197]
[1766170817545,0.00184,87192.0,87177.0,0.0114772]
[1766170817748,0.00184,87192.0,87176.0,0.00017197]
[1766170817749,0.00184,87192.0,87179.0,0.0114768]
[1766170818648,0.00184,87192.0,87181.0,0.0114766]
[1766170819353,0.0026,87192.0,87176.0,0.00017197]
[1766170819847,0.06172019,87227.0,87180.0,0.28805638]
[1766170820056,0.06172019,87227.0,87178.0,0.011477]
[1766170820057,0.0114728,87211.0,87190.0,0.28805638]
[1766170820354,0.0114731,87209.0,87191.0,0.0114752]
[1766170820849,0.01164507,87209.0,87191.0,0.01164717]
[1766170821556,0.00017197,87209.0,87194.0,0.0114749]
[1766170823445,0.00017197,87209.0,87191.0,0.00017197]
[1766170823647,0.0114738,87203.0,87167.0,1.46332]
[1766170823846,0.0114738,87203.0,87174.0,0.0114775]
[1766170823847,0.0114754,87191.0,87174.0,0.0114775]
[1766170824047,0.0114738,87203.0,87174.0,0.0114775]
[1766170824048,0.0114757,87189.0,87174.0,0.0114775]
[1766170824759,0.0016,87197.0,87173.0,0.00017197]
[1766170824760,0.011476,87187.0,87173.0,0.00017197]
[1766170824946,0.01164747,87190.0,87173.0,0.00017197]
[1766170825855,0.00017197,87190.0,87173.0,0.00017197]
[1766170826046,1.97e-06,87190.0,87186.0,0.0114759]
[1766170826247,0.00032,87197.0,87186.0,0.0114759]
[1766170826451,0.0114718,87218.0,87180.0,0.28812668]
[1766170826654,0.0114737,87204.0,87187.0,0.0114758]
[1766170826855,0.00576,87203.0,87187.0,0.0114758]
[1766170827458,0.011474,87202.0,87186.0,0.01164787]
[1766170828552,0.00576,87203.0,87186.0,0.00017197]
[1766170828754,0.0114752,87193.0,87186.0,1.97e-06]
[1766170830253,0.0114749,87195.0,87186.0,1.97e-06]
[1766170830454,0.00576,87203.0,87186.0,1.97e-06]
[1766170831053,0.00576,87203.0,87191.0,0.0114752]
[1766170831358,0.00576,87203.0,87186.0,1.97e-06]
[1766170831560,0.00288,87202.0,87191.0,0.0114753]
[1766170832758,0.06172019,87239.0,87192.0,0.28812668]
[1766170832962,0.0114714,87221.0,87202.0,0.0114738]
[1766170833159,0.00576,87220.0,87202.0,0.0114738]
[1766170833354,0.0114717,87219.0,87204.0,0.0114736]
[1766170833555,0.00576,87220.0,87191.0,0.00576]
[1766170833857,0.00017197,87214.0,87202.0,0.0114738]
[1766170834865,0.00017197,87214.0,87204.0,0.0114736]
[1766170835359,0.00017197,87214.0,87201.0,0.0114739]
[1766170835555,0.0114725,87213.0,87197.0,0.00017197]
[1766170835759,0.01164427,87214.0,87198.0,0.0114743]
[1766170836249,0.0114728,87211.0,87197.0,0.00017197]
[1766170836454,0.00576,87210.0,87180.0,0.28812668]
[1766170836662,0.0114732,87208.0,87176.0,0.00576]
[1766170836964,0.0114756,87190.0,87176.0,0.00576]
[1766170837960,0.0114758,87188.0,87176.0,0.00572]
[1766170838362,0.0114761,87186.0,87174.0,0.00017197]
[1766170839068,0.0114756,87190.0,87174.0,0.00017197]
[1766170839362,0.0114759,87187.0,87174.0,0.00017197]
[1766170839764,0.0114763,87184.0,87174.0,0.00017197]
[1766170840862,0.0114764,87183.0,87174.0,0.00017197]
[1766170841062,0.0114768,87181.0,87174.0,0.00017197]
[1766170841262,0.0114772,87178.0,87156.0,1.46332]
[1766170841465,0.0151172,87178.0,87158.0,0.00576]
[1766170841969,0.00364,87178.0,87158.0,0.00576]
[1766170842469,0.00364,87178.0,87160.0,0.0114794]
[1766170842769,0.00364,87178.0,87164.0,0.0114788]
[1766170843470,0.0114762,87185.0,87164.0,0.0114788]
[1766170844170,0.0114762,87185.0,87166.0,0.0114786]
[1766170844466,0.0114764,87184.0,87166.0,0.0114786]
[1766170844669,0.0114766,87182.0,87163.0,0.011479]
[1766170845073,0.00252,87183.0,87167.0,0.0114784]
[1766170845571,0.00252,87183.0,87161.0,0.0114792]
[1766170846865,0.00252,87183.0,87159.0,0.00368]
[1766170848165,0.00252,87183.0,87166.0,0.0114785]
[1766170849672,0.00252,87183.0,87168.0,0.0114783]
[1766170851573,0.00252,87183.0,87160.0,0.28812668]
[1766170851775,0.00252,87183.0,87167.0,0.0114784]
[1766170852072,0.0139964,87183.0,87167.0,0.0114784]
[1766170852577,0.0139964,87183.0,87169.0,0.0114782]
[1766170852780,0.00252,87183.0,87169.0,0.0114782]
[1766170853978,0.00252,87183.0,87146.0,0.08232737]
[1766170854277,0.00017197,87192.0,87170.0,0.28812668]
[1766170854472,0.0114761,87185.0,87170.0,0.29960468]
[1766170854674,0.00572,87186.0,87173.0,0.0114776]
[1766170855070,0.017196,87186.0,87170.0,0.011478]
[1766170856383,0.017196,87186.0,87172.0,0.0114778]
[1766170858278,0.0114763,87184.0,87169.0,0.0114781]
[1766170859184,0.00572,87186.0,87171.0,0.0114779]
[1766170859774,0.00017197,87192.0,87161.0,0.00576]
[1766170859980,0.0114739,87202.0,87187.0,0.0114758]
[1766170860278,0.0114711,87224.0,87190.0,0.28812668]
[1766170860483,0.00568,87223.0,87193.0,0.0114751]
[1766170860687,0.0114713,87222.0,87193.0,0.0114751]
[1766170860988,0.00017208,87216.0,87205.0,0.0114734]
[1766170861185,0.00568,87223.0,87200.0,0.28812668]
[1766170861379,0.0114718,87219.0,87202.0,0.0114738]
[1766170862175,0.01164388,87219.0,87202.0,0.0114738]
[1766170862377,0.0114722,87215.0,87200.0,0.28812668]
[1766170862580,0.00017208,87219.0,87200.0,0.00576]
[1766170862774,0.0114725,87213.0,87200.0,0.00576]
[1766170863588,0.0114731,87208.0,87199.0,0.00017208]
[1766170864391,0.0114727,87211.0,87199.0,0.00017208]
[1766170864587,0.00576,87213.0,87199.0,0.00017208]
[1766170865691,0.00017208,87219.0,87214.0,0.0114722]
[1766170865892,1.4634,87247.0,87210.0,0.0114728]
[1766170866192,0.03853846,87246.0,87225.0,0.0114708]
[1766170866388,0.0114685,87243.0,87222.0,0.0114712]
[1766170866584,0.0114689,87240.0,87220.0,0.28812668]
[1766170866784,0.00017197,87239.0,87220.0,0.28812668]
[1766170866985,0.0114694,87237.0,87221.0,0.00017197]
[1766170867292,0.0114696,87235.0,87221.0,0.00017197]
[1766170867595,0.00576,87238.0,87221.0,0.01164327]
[1766170867993,0.0114693,87237.0,87221.0,0.00017197]
[1766170869400,0.00576,87238.0,87221.0,0.00017197]
[1766170869588,0.0114705,87228.0,87221.0,0.00017197]
[1766170869792,0.00576,87230.0,87213.0,0.0114724]
[1766170869998,0.0172303,87230.0,87212.0,0.00088]
[1766170870195,0.0114707,87227.0,87212.0,0.00088]
[1766170870393,0.0172302,87230.0,87212.0,0.00088]
[1766170870693,0.0172302,87230.0,87212.0,0.00105197]
[1766170871998,0.00017197,87239.0,87212.0,0.00105197]
[1766170871999,0.00017197,87239.0,87220.0,0.28812668]
[1766170872295,0.00017197,87239.0,87229.0,0.28812668]
[1766170872491,0.00017197,87239.0,87220.0,0.29388668]
[1766170872801,0.01164107,87239.0,87220.0,0.29388668]
[1766170873300,0.00017197,87239.0,87223.0,0.0114711]
[1766170874293,0.00017197,87239.0,87220.0,0.29388668]
[1766170874294,0.00017197,87239.0,87230.0,0.0114702]
[1766170874494,1.46308,87262.0,87238.0,0.0114691]
[1766170874800,0.0114673,87252.0,87229.0,0.28812668]
[1766170874993,0.00364,87251.0,87229.0,0.28812668]
[1766170875388,0.00364,87251.0,87237.0,0.0114692]
[1766170876296,0.0114676,87250.0,87235.0,0.00017197]
[1766170876497,0.00364,87251.0,87235.0,0.00017197]
[1766170877098,0.0114681,87246.0,87235.0,0.00017197]
[1766170877294,0.00364,87251.0,87235.0,0.00017197]
[1766170877500,0.0114678,87249.0,87235.0,0.00017197]
[1766170878596,0.00364,87251.0,87235.0,0.00017197]
[1766170878901,0.00364,87251.0,87236.0,0.0114694]
[1766170879095,0.0114676,87250.0,87235.0,0.00017197]
[1766170879398,0.00364,87251.0,87200.0,0.42205142]
[1766170879599,0.00364,87251.0,87224.0,0.0114709]
[1766170879788,0.0114657,87265.0,87234.0,0.0114696]
[1766170879994,1.46648,87264.0,87237.0,0.0114692]
[1766170880200,0.0114671,87254.0,87237.0,0.0114692]
[1766170880494,0.00576,87253.0,87239.0,0.011469]
[1766170880698,0.00576,87253.0,87241.0,0.0114687]
[1766170881003,0.00576,87253.0,87240.0,0.0114688]
[1766170881398,0.00576,87253.0,87237.0,0.00017197]
[1766170881996,0.0114674,87252.0,87237.0,0.00017197]
[1766170882189,0.00576,87253.0,87237.0,0.00017197]
[1766170882401,0.0114674,87252.0,87237.0,7e-08]
[1766170882601,0.0114687,87242.0,87237.0,7e-08]
[1766170882900,0.0114683,87245.0,87237.0,7e-08]
[1766170883397,0.0114679,87248.0,87237.0,7e-08]
[1766170884607,0.00576,87253.0,87237.0,7e-08]
[1766170884903,0.0114679,87248.0,87237.0,7e-08]
[1766170886294,0.00576,87253.0,87237.0,7e-08]
[1766170888398,0.0114679,87248.0,87237.0,7e-08]
[1766170889497,0.00017197,87254.0,87237.0,7e-08]
[1766170889697,0.10357554,87290.0,87237.0,7e-08]
[1766170889698,1.4741437,87280.0,87240.0,0.42205142]
[1766170889903,0.0114644,87274.0,87242.0,0.0114686]
[1766170890199,1.46264,87282.0,87256.0,0.0114668]
[1766170890399,0.00576,87281.0,87267.0,0.0114652]
[1766170890600,0.00576,87281.0,87265.0,0.00017187]
[1766170891105,0.0114653,87268.0,87265.0,7e-08]
[1766170891503,0.00576,87281.0,87265.0,7e-08]
[1766170892009,0.0114641,87277.0,87265.0,7e-08]
[1766170892312,0.0114637,87280.0,87265.0,7e-08]
[1766170892500,0.0114641,87277.0,87265.0,7e-08]
[1766170893007,0.00576,87281.0,87265.0,7e-08]
[1766170893205,0.00576,87281.0,87266.0,0.0114655]
[1766170893609,0.0114642,87276.0,87265.0,7e-08]
[1766170893813,0.00576,87281.0,87265.0,7e-08]
[1766170893814,0.0114653,87268.0,87265.0,7e-08]
[1766170894814,0.0172248,87272.0,87265.0,7e-08]
[1766170895205,0.00576,87272.0,87265.0,7e-08]
[1766170895514,0.00288,87277.0,87265.0,7e-08]
[1766170896014,0.0114643,87275.0,87265.0,7e-08]
[1766170896212,0.00288,87277.0,87265.0,7e-08]
[1766170897603,0.0114649,87271.0,87265.0,7e-08]
[1766170898003,0.0143441,87277.0,87265.0,7e-08]
[1766170898203,0.00288,87277.0,87265.0,7e-08]
[1766170898402,0.00288,87277.0,87265.0,0.01146567]
[1766170899205,0.00288,87277.0,87265.0,7e-08]
[1766170900218,0.00017187,87283.0,87266.0,0.0114654]
[1766170900409,0.00017187,87283.0,87275.0,0.0114642]
[1766170900718,7e-08,87283.0,87274.0,0.0114644]
[1766170900910,7e-08,87283.0,87272.0,0.0114646]
[1766170901109,0.0114635,87281.0,87265.0,0.01146557]
[1766170901913,0.0114634,87282.0,87266.0,0.0114655]
[1766170903407,7e-08,87283.0,87265.0,7e-08]
[1766170904407,7e-08,87283.0,87268.0,0.0114651]
[1766170904604,7e-08,87283.0,87265.0,7e-08]
[1766170904809,7e-08,87283.0,87274.0,0.0114644]
[1766170905013,7e-08,87283.0,87278.0,0.0114638]
[1766170905215,7e-08,87283.0,87280.0,0.0114636]
[1766170905915,7e-08,87283.0,87273.0,0.0172244]
[1766170906112,7e-08,87283.0,87275.0,0.0114642]
[1766170906414,0.0114637,87280.0,87265.0,0.01146557]
[1766170906612,0.011464,87278.0,87265.0,7e-08]
[1766170907408,0.0114636,87281.0,87265.0,7e-08]
[1766170907716,0.0114639,87279.0,87265.0,7e-08]
[1766170908917,0.00568007,87283.0,87265.0,7e-08]
[1766170909413,0.0114641,87277.0,87265.0,7e-08]
[1766170909720,0.0114637,87280.0,87265.0,7e-08]
[1766170909914,0.0114639,87278.0,87265.0,7e-08]
[1766170911619,0.0114636,87281.0,87265.0,7e-08]
[1766170911809,0.0114638,87279.0,87265.0,7e-08]
[1766170912010,0.00568007,87283.0,87272.0,0.0114646]
[1766170912318,0.00568007,87283.0,87265.0,7e-08]
[1766170912513,7e-08,87283.0,87266.0,0.0114654]
[1766170912719,7e-08,87283.0,87276.0,0.0114641]
[1766170912922,7e-08,87283.0,87278.0,0.0114639]
[1766170913310,7e-08,87283.0,87274.0,0.00576]
[1766170913511,0.0114598,87310.0,87283.0,0.0114632]
[1766170913806,0.0114598,87310.0,87274.0,0.00576]
[1766170913807,0.0114613,87298.0,87280.0,0.0114636]
[1766170914014,0.00576,87297.0,87280.0,0.0114636]
[1766170914518,0.0114613,87298.0,87280.0,0.01163547]
[1766170914719,0.0114574,87328.0,87308.0,0.0114598]
[1766170915022,0.0150974,87328.0,87300.0,0.42171152]
[1766170915218,0.00364,87328.0,87302.0,0.0114607]
[1766170915423,0.00364,87328.0,87301.0,0.00364]
[1766170915616,0.00017187,87323.0,87311.0,0.0114595]
[1766170915821,0.00017187,87323.0,87306.0,0.00017187]
[1766170916718,0.0114585,87320.0,87306.0,0.00017187]
[1766170916919,0.0114591,87315.0,87306.0,0.00017187]
[1766170917218,0.00576,87317.0,87286.0,0.0114628]
[1766170917407,0.0114595,87312.0,87292.0,0.011462]
[1766170918014,0.00576,87317.0,87287.0,0.00576]
[1766170918212,0.00576,87317.0,87293.0,0.00017187]
[1766170918418,0.0114592,87314.0,87297.0,0.0114614]
[1766170918724,0.00576,87317.0,87300.0,0.0114609]
[1766170919622,0.0114589,87316.0,87300.0,0.0114609]
[1766170919931,0.00576,87317.0,87300.0,0.0114609]
[1766170920317,0.00576,87317.0,87310.0,0.0114597]
[1766170920615,0.00576,87317.0,87300.0,0.42171152]
[1766170920616,0.00576,87317.0,87306.0,0.0114601]
[1766170920822,0.00576,87317.0,87309.0,0.0114597]
[1766170921419,0.00576,87317.0,87300.0,0.42171152]
[1766170921735,0.00576,87317.0,87307.0,0.01146]
[1766170921921,0.00576,87317.0,87300.0,0.42171152]
[1766170922324,0.00576,87317.0,87306.0,0.0114601]
[1766170924013,0.00576,87317.0,87297.0,0.00568]
[1766170924229,0.00576,87317.0,87303.0,0.0114605]
[1766170924530,0.00576,87317.0,87300.0,0.011461]
[1766170924718,0.00576,87317.0,87304.0,0.0114604]
[1766170925729,0.00576,87317.0,87297.0,0.0114614]
[1766170926023,0.0114618,87295.0,87280.0,1.4616]
[1766170926223,0.0114618,87295.0,87270.0,0.42171152]
[1766170926420,0.0114618,87295.0,87271.0,1.46736]
[1766170926619,0.0114612,87299.0,87280.0,0.0114636]
[1766170926818,0.0114612,87299.0,87281.0,0.00252]
[1766170927219,0.00017187,87299.0,87281.0,0.00017187]
[1766170928022,0.00017187,87299.0,87289.0,0.0114624]
[1766170929128,0.00017187,87299.0,87281.0,0.00017187]
[1766170929321,0.00017187,87299.0,87283.0,0.0114631]
[1766170930821,0.0114613,87298.0,87281.0,0.00017187]
[1766170931018,0.00017187,87299.0,87281.0,0.00017187]
[1766170931423,0.0114617,87295.0,87281.0,0.00017187]
[1766170932635,0.0114618,87294.0,87281.0,0.00017187]
[1766170932831,0.00017187,87299.0,87281.0,0.00017187]
[1766170933533,0.0114613,87298.0,87281.0,0.00017187]
[1766170933835,0.0114613,87298.0,87281.0,0.01163527]
[1766170934435,0.0114616,87296.0,87281.0,0.01163527]
[1766170934835,0.01163307,87299.0,87281.0,0.01163527]
[1766170935538,0.00017187,87299.0,87281.0,0.00017187]
[1766170935938,0.01163307,87299.0,87284.0,0.0114631]
[1766170936327,0.01163307,87299.0,87281.0,0.00017187]
[1766170936328,0.0114617,87295.0,87281.0,0.00017187]
[1766170937139,0.0114617,87295.0,87281.0,0.01163527]
[1766170937331,0.00017187,87299.0,87281.0,0.00017187]
[1766170937637,0.0114617,87295.0,87281.0,0.00017187]
[1766170938133,0.011462,87293.0,87281.0,0.00017187]
[1766170938932,0.0114616,87296.0,87281.0,0.00017187]
[1766170939132,0.011462,87293.0,87281.0,0.00017187]
[1766170939630,0.00017187,87299.0,87282.0,0.0114633]
[1766170939824,0.0114616,87296.0,87282.0,0.0114633]
[1766170940029,0.01163307,87299.0,87284.0,0.0114631]
[1766170941140,0.0923298,87322.0,87281.0,0.00017187]
[1766170941141,0.06172019,87339.0,87316.0,0.0114588]
[1766170941338,0.0114575,87327.0,87310.0,0.0114597]
[1766170941536,0.0114571,87330.0,87300.0,0.28714821]
[1766170942034,0.0114574,87328.0,87310.0,0.0114596]
[1766170942240,0.0114578,87325.0,87310.0,0.00017176]
[1766170944841,0.01162916,87328.0,87311.0,0.0114595]
[1766170945545,0.01162916,87328.0,87313.0,0.0114592]
[1766170946233,0.0114577,87326.0,87310.0,0.01163146]
[1766170947446,0.00017176,87328.0,87310.0,0.00017176]
[1766170947643,0.00017176,87328.0,87290.0,0.28714821]
[1766170947844,0.00017176,87328.0,87310.0,0.0114596]
[1766170948039,0.00017176,87328.0,87307.0,0.01146]
[1766170948240,0.0114579,87324.0,87309.0,0.0114598]
[1766170948443,0.0114581,87323.0,87307.0,0.01146]
[1766170948639,0.00576,87322.0,87307.0,0.01146]
[1766170949744,0.00576,87322.0,87306.0,0.00017176]
[1766170951043,0.0114586,87319.0,87306.0,0.00017176]
[1766170951247,0.00576,87322.0,87306.0,0.00017176]
[1766170951450,0.0114594,87313.0,87306.0,0.00017176]
[1766170951846,0.011459,87316.0,87306.0,0.00017176]
[1766170952442,0.0114592,87314.0,87306.0,0.00017176]
[1766170952845,0.0114585,87320.0,87306.0,0.00017176]
[1766170953044,0.00576,87322.0,87306.0,0.00017176]
[1766170954251,0.0114586,87319.0,87306.0,0.00017176]
[1766170955253,0.00576,87322.0,87306.0,0.00017176]
[1766170956353,0.0114591,87315.0,87306.0,0.00017176]
[1766170956955,0.00576,87322.0,87306.0,0.00017176]
[1766170957143,0.0114593,87314.0,87306.0,0.00017176]
[1766170957543,0.00576,87322.0,87307.0,0.01146]
[1766170957948,0.0172182,87322.0,87307.0,0.01146]
[1766170958149,0.00576,87322.0,87309.0,0.0114598]
[1766170958650,0.00017176,87328.0,87306.0,0.00017176]
[1766170958951,6e-08,87328.0,87319.0,0.0114584]
[1766170959145,6e-08,87328.0,87310.0,0.00576]
[1766170959347,6e-08,87328.0,87316.0,0.0114589]
[1766170959552,0.0114595,87312.0,87292.0,0.00576]
[1766170959745,0.0114599,87309.0,87293.0,0.0114619]
[1766170959945,0.0114601,87307.0,87294.0,0.00568]
[1766170960445,0.0114598,87310.0,87294.0,0.00568]
[1766170960754,0.00017176,87309.0,87294.0,0.00568]
[1766170962654,0.01163166,87309.0,87294.0,0.00568]
[1766170962854,0.0114601,87307.0,87294.0,0.00568]
[1766170964255,0.00017176,87309.0,87292.0,0.00017176]
[1766170964454,0.00017176,87309.0,87293.0,0.00168]
[1766170964656,0.0114619,87294.0,87279.0,0.06178012]
[1766170964854,0.0114601,87307.0,87266.0,0.0114654]
[1766170964855,0.0114635,87282.0,87266.0,0.0114654]
[1766170965053,0.0171425,87289.0,87273.0,0.0114645]
[1766170965245,0.0171425,87289.0,87267.0,0.00576]
[1766170965246,0.00568,87289.0,87275.0,0.0114642]
[1766170965858,0.0114626,87288.0,87271.0,0.0114647]
[1766170966554,0.0114631,87285.0,87270.0,0.22996115]
[1766170966770,0.00568,87289.0,87270.0,5e-08]
[1766170967054,0.00568,87289.0,87237.0,0.11417903]
[1766170967055,0.00568,87289.0,87260.0,0.24142725]
[1766170967257,0.00017187,87283.0,87270.0,0.22996115]
[1766170967452,0.00017187,87283.0,87267.0,0.0114652]
[1766170967856,0.0114634,87282.0,87263.0,0.0114658]
[1766170968063,0.0114638,87279.0,87261.0,0.00576]
[1766170968463,0.01163527,87283.0,87263.0,0.0114658]
[1766170968666,0.0114636,87281.0,87263.0,0.0114658]
[1766170970165,0.00017187,87283.0,87261.0,0.00576]
[1766170970366,0.0114634,87282.0,87263.0,0.0114658]
[1766170970767,0.0114638,87279.0,87263.0,0.0114658]
[1766170970975,0.0114638,87279.0,87261.0,0.00576]
[1766170971770,0.0114637,87280.0,87262.0,0.0114659]
[1766170972862,0.00017187,87283.0,87269.0,0.011465]
[1766170973165,0.00017187,87283.0,87277.0,0.011464]
[1766170973570,0.00017187,87283.0,87261.0,0.00576]
[1766170973962,1.87e-06,87283.0,87261.0,0.00576]
[1766170974964,1.87e-06,87283.0,87263.0,0.00017187]
[1766170975165,1.87e-06,87283.0,87271.0,0.0114647]
[1766170975369,1.87e-06,87283.0,87273.0,0.0114645]
[1766170975763,0.0114636,87281.0,87263.0,0.00017187]
[1766170975962,0.0114636,87281.0,87264.0,0.0114657]
[1766170976356,1.87e-06,87283.0,87263.0,0.00017187]
[1766170976870,1.87e-06,87283.0,87269.0,0.011465]
[1766170977962,0.0114636,87281.0,87265.0,0.0114655]
[1766170978162,1.87e-06,87283.0,87267.0,0.0114653]
[1766170979371,1.87e-06,87283.0,87269.0,0.011465]
[1766170979578,0.0114634,87282.0,87266.0,0.0114654]
[1766170979868,0.0114637,87280.0,87266.0,0.0114654]
[1766170980266,0.01146517,87283.0,87263.0,0.00017187]
[1766170980464,0.01146517,87283.0,87269.0,0.011465]
[1766170981366,1.87e-06,87283.0,87281.0,0.0114634]
[1766170981677,1.87e-06,87283.0,87272.0,0.0114646]
[1766170981866,1.87e-06,87283.0,87274.0,0.0114643]
[1766170982065,1.87e-06,87283.0,87279.0,0.0114638]
[1766170982260,1.87e-06,87283.0,87276.0,0.0114641]
[1766170983773,1.87e-06,87283.0,87278.0,0.0114638]
[1766170984771,1.46184,87303.0,87268.0,0.00576]
[1766170984772,1.46184,87303.0,87270.0,0.28751269]
[1766170984970,0.00576,87302.0,87284.0,0.011463]
[1766170985175,0.0114609,87301.0,87284.0,0.011463]
[1766170985769,0.01163277,87301.0,87284.0,0.01163487]
[1766170985973,0.00017187,87301.0,87284.0,0.00017187]
[1766170986479,0.0114616,87296.0,87284.0,0.00017187]
[1766170989072,0.0114612,87299.0,87284.0,0.00017187]
[1766170989378,0.0114586,87319.0,87302.0,0.0114606]
[1766170989578,0.0114586,87319.0,87278.0,0.00576]
[1766170989579,0.0114591,87315.0,87300.0,0.22983803]
[1766170989781,0.0114591,87315.0,87300.0,0.24129903]
[1766170990173,0.0114594,87313.0,87300.0,0.22983803]
[1766170990380,0.00017187,87315.0,87300.0,0.22983803]
[1766170990581,0.0114594,87312.0,87300.0,0.22983803]
[1766170991369,0.0114594,87312.0,87298.0,0.01163307]
[1766170991571,0.01163097,87315.0,87298.0,0.01163307]
[1766170991887,0.0114595,87312.0,87298.0,0.00017187]
[1766170992086,0.01163097,87315.0,87299.0,0.0114611]
[1766170992488,0.00017187,87315.0,87298.0,0.00017187]
[1766170992785,0.0114598,87310.0,87298.0,0.00017187]
[1766170993186,0.0114593,87313.0,87298.0,0.00017187]
[1766170993590,0.00017187,87315.0,87298.0,0.00017187]
[1766170993886,0.0114601,87307.0,87298.0,7e-08]
[1766170994487,0.0114597,87310.0,87298.0,7e-08]
[1766170994983,0.00017187,87315.0,87298.0,7e-08]
[1766170994984,0.0114594,87313.0,87298.0,7e-08]
[1766170995686,7e-08,87315.0,87312.0,0.0114594]
[1766170996180,1.46172,87338.0,87301.0,0.00576]
[1766170996181,0.00152,87324.0,87301.0,0.00576]
[1766170996381,0.00048,87326.0,87316.0,0.0114588]
[1766170996582,0.00576,87329.0,87308.0,0.00576]
[1766170996782,0.00576,87330.0,87308.0,0.00576]
[1766170996981,0.00576,87330.0,87314.0,0.0114591]
[1766170997186,0.00017187,87328.0,87314.0,0.0114591]
[1766170997484,0.00017187,87328.0,87310.0,0.00017187]
[1766170997786,0.0114575,87327.0,87310.0,0.01163147]
[1766170998186,0.00017187,87328.0,87310.0,0.00017187]
[1766170998385,0.0114579,87324.0,87310.0,0.00017187]
[1766170999890,0.0114575,87327.0,87310.0,0.00017187]
[1766171000692,0.0114575,87327.0,87310.0,0.01163147]
[1766171002194,0.0114578,87325.0,87310.0,0.01163147]
[1766171002394,0.0114578,87325.0,87310.0,0.00017187]
[1766171002795,0.011458,87323.0,87310.0,0.00017187]
[1766171003385,0.00017187,87328.0,87310.0,0.00017187]
[1766171003386,0.0114582,87322.0,87310.0,0.00017187]
[1766171003581,0.00017187,87328.0,87310.0,0.00017187]
[1766171003782,0.0114577,87326.0,87303.0,0.00248]
[1766171004095,0.0114587,87318.0,87301.0,0.0114608]
[1766171004295,0.011459,87316.0,87301.0,0.0114608]
[1766171004683,0.00576,87321.0,87300.0,0.0044]
[1766171006298,0.00576,87321.0,87305.0,0.0114603]
[1766171006594,0.00576,87321.0,87300.0,0.0044]
[1766171006595,0.00576,87321.0,87307.0,0.01146]